bitfinex-derivatives/quotes_SOLF0:USTF0_20260129
["timestamp","ask_amount","ask_price","bid_price","bid_amount"]
[1769654523304,70.53688641,123.74,123.68,7.2872]
[1769654525002,70.53688641,123.74,123.69,7.2867]
[1769654526407,70.53688641,123.78,123.69,68.64289149]
[1769654526604,70.53688641,123.76,123.69,68.64289149]
[1769654527007,70.53688641,123.76,123.69,7.2867]
[1769654527211,76.76209962,123.75,123.69,7.2867]
[1769654527405,70.53688641,123.75,123.69,7.2867]
[1769654528513,14.01036215,123.77,123.67,61.35619149]
[1769654528514,76.76596175,123.74,123.67,61.35619149]
[1769654528703,70.53688641,123.74,123.67,61.35619149]
[1769654529310,70.53688641,123.74,123.68,7.2873]
[1769654531511,73.04982644,123.74,123.68,7.2873]
[1769654531714,73.04982644,123.74,123.69,7.2867]
[1769654532514,73.04982644,123.76,123.7,7.2861]
[1769654533008,70.53688641,123.78,123.72,2.51294003]
[1769654533616,73.04982644,123.78,123.71,2.51294003]
[1769654534015,73.04982644,123.78,123.72,2.51294003]
[1769654534416,73.04982644,123.78,123.72,9.79774003]
[1769654534616,70.53688641,123.78,123.72,9.79774003]
[1769654535820,77.81838641,123.78,123.72,9.79774003]
[1769654538012,70.53688641,123.78,123.73,9.79734003]
[1769654538609,70.53688641,123.78,123.72,2.51294003]
[1769654539415,70.53688641,123.78,123.73,9.79714003]
[1769654540218,70.53688641,123.8,123.76,2.51294003]
[1769654540613,70.53688641,123.8,123.75,9.79584003]
[1769654541014,70.53688641,123.8,123.74,2.51294003]
[1769654542323,70.53688641,123.8,123.74,9.79674003]
[1769654543325,73.04982644,123.76,123.69,185.04543417]
[1769654544229,2.51294003,123.75,123.69,182.53249414]
[1769654544427,2.51294003,123.75,123.71,7.2856]
[1769654544928,2.51294003,123.75,123.67,69.18489414]
[1769654544929,2.51294003,123.72,123.67,69.18489414]
[1769654545726,2.51294003,123.72,123.68,7.2872]
[1769654547024,70.53688641,123.73,123.68,7.2872]
[1769654547224,69.5892274,123.74,123.68,7.2872]
[1769654547729,2.51294003,123.73,123.68,7.2872]
[1769654549630,2.51294003,123.72,123.67,76.47279414]
[1769654550533,2.51294003,123.7,123.65,330.0286]
[1769654550728,2.51294003,123.69,123.65,330.0286]
[1769654550929,70.18711306,123.7,123.65,330.0286]
[1769654554127,74.95867303,123.73,123.65,387.15259005]
[1769654554328,2.51294003,123.72,123.66,71.70109005]
[1769654554525,2.51294003,123.71,123.66,71.70109005]
[1769654555136,67.67417303,123.73,123.67,71.70039005]
[1769654555338,70.18711306,123.73,123.67,71.70039005]
[1769654555540,70.18711306,123.73,123.67,64.41259005]
[1769654555731,2.51294003,123.73,123.68,71.69989005]
[1769654558137,2.51294003,123.74,123.68,64.41259005]
[1769654559238,2.51294003,123.74,123.68,66.92553008]
[1769654559540,2.51294003,123.74,123.7,7.2861]
[1769654559839,2.51294003,123.74,123.68,66.92553008]
[1769654559840,2.51294003,123.73,123.68,64.41259005]
[1769654560039,2.51294003,123.73,123.68,71.69939005]
[1769654560733,2.51294003,123.73,123.69,7.2865]
[1769654560938,70.18711306,123.74,123.69,7.2865]
[1769654564137,113.2626,123.79,123.73,2.51294003]
[1769654564138,67.67417303,123.79,123.73,2.51294003]
[1769654564631,67.67417303,123.79,123.74,9.79674003]
[1769654564838,67.67417303,123.81,123.75,2.51294003]
[1769654565931,67.67417303,123.81,123.76,9.79544003]
[1769654566539,70.18711306,123.81,123.74,74.20893008]
[1769654566747,70.18711306,123.81,123.74,66.92553008]
[1769654566937,380.01510787,123.85,123.74,66.92553008]
[1769654566938,67.67417303,123.84,123.76,64.41259005]
[1769654567137,70.18711306,123.82,123.75,2.51294003]
[1769654567338,70.18711306,123.8,123.73,325.31294003]
[1769654567735,70.18711306,123.8,123.73,389.72553008]
[1769654567939,67.67417303,123.8,123.74,2.51294003]
[1769654569239,70.18711306,123.8,123.73,389.72553008]
[1769654569440,70.18711306,123.8,123.75,7.2832]
[1769654571144,70.18711306,123.8,123.73,397.00933008]
[1769654571447,2.51294003,123.79,123.73,387.21259005]
[1769654571750,2.51294003,123.78,123.73,322.8]
[1769654571937,70.18711306,123.78,123.73,322.8]
[1769654572542,2.51294003,123.77,123.73,322.8]
[1769654572851,70.18711306,123.77,123.73,322.8]
[1769654573537,2.51294003,123.76,123.71,7.285]
[1769654573736,2.51294003,123.75,123.71,330.005]
[1769654573938,67.67417303,123.76,123.71,322.72]
[1769654573939,2.51294003,123.74,123.71,322.72]
[1769654574941,2.51294003,123.74,123.68,64.41259005]
[1769654574942,2.51294003,123.72,123.68,7.287]
[1769654575246,2.51294003,123.71,123.68,7.287]
[1769654575445,2.51294003,123.72,123.68,7.287]
[1769654575645,2.51354862,123.72,123.68,7.287]
[1769654577647,66.82121482,123.79,123.72,68.6941155]
[1769654577856,66.82121482,123.79,123.7,2.51354862]
[1769654577857,2.51354862,123.76,123.71,322.72]
[1769654578545,2.51354862,123.76,123.71,391.4141155]
[1769654579352,2.51354862,123.76,123.72,7.2848]
[1769654580151,2.51354862,123.78,123.73,68.6941155]
[1769654580349,66.82121482,123.81,123.73,71.20766412]
[1769654580350,8.69298542,123.8,123.73,71.20766412]
[1769654580652,66.82121482,123.84,123.76,71.20766412]
[1769654580858,2.51354862,123.83,123.77,2.51354862]
[1769654581049,2.51354862,123.83,123.76,391.4341155]
[1769654581247,69.33476344,123.83,123.76,393.94766412]
[1769654581447,69.33476344,123.83,123.77,71.20766412]
[1769654581658,2.51354862,123.82,123.76,325.25354862]
[1769654581855,2.51354862,123.81,123.76,322.74]
[1769654582253,2.51354862,123.81,123.76,330.0224]
[1769654582653,2.51354862,123.82,123.76,393.94766412]
[1769654582954,69.33476344,123.83,123.77,71.20766412]
[1769654583458,2.51354862,123.85,123.78,71.20766412]
[1769654584256,2.51354862,123.84,123.78,71.20766412]
[1769654584461,2.51354862,123.85,123.79,78.48796412]
[1769654584765,2.51354862,123.84,123.79,75.9744155]
[1769654585569,66.82121482,123.86,123.79,75.9744155]
[1769654587367,66.82121482,123.86,123.8,7.2801]
[1769654589570,66.82121482,123.86,123.79,68.6941155]
[1769654590073,66.82121482,123.84,123.75,391.3141155]
[1769654590668,74.09921482,123.84,123.75,391.3141155]
[1769654591072,74.09921482,123.84,123.76,68.6941155]
[1769654591672,66.82121482,123.84,123.77,7.282]
[1769654593177,66.82121482,123.84,123.77,75.9761155]
[1769654594377,74.09921482,123.84,123.77,75.9761155]
[1769654594888,66.82121482,123.81,123.74,68.6941155]
[1769654595078,66.82121482,123.81,123.73,391.2941155]
[1769654595384,66.82121482,123.81,123.74,68.6941155]
[1769654596287,66.82121482,123.81,123.75,7.2832]
[1769654602981,66.82121482,123.81,123.76,7.2824]
[1769654603186,66.82121482,123.83,123.76,75.9765155]
[1769654606186,66.82121482,123.83,123.73,435.9095]
[1769654606383,12.89527764,123.82,123.72,322.62]
[1769654606579,71.46659428,123.81,123.72,390.81986817]
[1769654606781,65.29006135,123.81,123.72,390.81986817]
[1769654607286,120.68611992,123.84,123.73,7.2844]
[1769654607287,65.29006135,123.79,123.73,7.2844]
[1769654607481,65.29006135,123.79,123.73,75.48426817]
[1769654607679,2.51078037,123.78,123.73,75.48426817]
[1769654608285,67.80084172,123.79,123.74,7.2838]
[1769654611997,68.1185998,123.81,123.75,65.20132023]
[1769654613392,68.1185998,123.81,123.76,7.2821]
[1769654613893,65.60781943,123.81,123.76,7.2821]
[1769654614095,68.1185998,123.81,123.76,7.2821]
[1769654614500,2.51078037,123.8,123.76,7.2821]
[1769654615301,68.1185998,123.81,123.76,7.2821]
[1769654616399,7.2785,123.83,123.68,65.20132023]
[1769654616400,68.1185998,123.77,123.68,65.20132023]
[1769654616598,2.51078037,123.73,123.68,387.82132023]
[1769654616798,65.60781943,123.75,123.68,387.82132023]
[1769654616799,2.51078037,123.72,123.68,387.82132023]
[1769654617193,2.51078037,123.73,123.68,387.82132023]
[1769654617807,2.51078037,123.72,123.68,322.62]
[1769654619100,2.51078037,123.72,123.68,329.9071]
[1769654619301,2.51078037,123.73,123.68,329.9071]
[1769654620104,2.51078037,123.71,123.68,322.62]
[1769654620296,2.51078037,123.69,123.63,65.20132023]
[1769654620598,2.51078037,123.69,123.63,387.86132023]
[1769654620799,2.51078037,123.7,123.63,390.3721006]
[1769654621001,2.51078037,123.69,123.63,390.3721006]
[1769654621394,2.51078037,123.69,123.65,7.289]
[1769654622296,2.51078037,123.7,123.65,7.289]
[1769654624405,7.2841,123.74,123.63,325.17078037]
[1769654624707,68.1185998,123.73,123.67,67.7121006]
[1769654625006,2.51078037,123.72,123.67,65.20132023]
[1769654625611,2.51078037,123.71,123.65,67.7121006]
[1769654626304,2.51078037,123.71,123.66,7.288]
[1769654626502,2.51078037,123.71,123.65,67.7121006]
[1769654626710,2.51078037,123.72,123.65,67.7121006]
[1769654627407,2.51078037,123.72,123.67,7.2879]
[1769654627608,68.1185998,123.73,123.67,7.2879]
[1769654633120,68.1185998,123.73,123.68,7.2873]
[1769654634414,65.60781943,123.73,123.68,7.2873]
[1769654635621,68.12101766,123.73,123.68,7.2873]
[1769654636614,64.40247005,123.71,123.67,7.2879]
[1769654636818,66.91566828,123.71,123.67,7.2879]
[1769654637120,66.91566828,123.71,123.65,65.20132023]
[1769654637321,66.91566828,123.71,123.65,72.48982023]
[1769654637522,64.40247005,123.71,123.65,72.48982023]
[1769654638615,64.40247005,123.71,123.66,7.2884]
[1769654640918,64.40247005,123.74,123.66,67.57066713]
[1769654641223,66.91566828,123.73,123.66,67.57066713]
[1769654641920,2.51319823,123.72,123.66,72.3455689]
[1769654642224,66.91566828,123.71,123.66,7.2881]
[1769654642521,66.91566828,123.71,123.62,67.57066713]
[1769654642522,66.91566828,123.69,123.62,67.57066713]
[1769654643312,66.91566828,123.69,123.64,7.2894]
[1769654643518,7.2857,123.71,123.62,65.0574689]
[1769654643519,66.91566828,123.68,123.62,65.0574689]
[1769654644021,64.40247005,123.68,123.62,65.0574689]
[1769654644223,64.40247005,123.68,123.62,67.57066713]
[1769654644518,64.40247005,123.68,123.63,7.2902]
[1769654644725,64.40247005,123.68,123.62,67.57066713]
[1769654645029,64.40247005,123.68,123.63,2.51319823]
[1769654645616,64.40247005,123.71,123.63,67.57066713]
[1769654645818,66.91566828,123.71,123.65,7.289]
[1769654646014,2.51319823,123.73,123.66,67.57066713]
[1769654646229,66.91566828,123.73,123.66,67.57066713]
[1769654646426,64.40247005,123.73,123.67,2.51319823]
[1769654646721,64.40247005,123.73,123.67,9.80109823]
[1769654648823,64.40247005,123.73,123.68,9.80009823]
[1769654649123,66.91566828,123.75,123.68,74.85756713]
[1769654650921,64.40247005,123.75,123.64,113.3937]
[1769654651126,64.40247005,123.68,123.61,2.51319823]
[1769654651321,66.91566828,123.67,123.6,67.57066713]
[1769654651626,66.91566828,123.67,123.6,72.3493689]
[1769654651826,66.91566828,123.67,123.6,74.86256713]
[1769654652623,66.91566828,123.67,123.6,65.0574689]
[1769654652624,2.51319823,123.65,123.6,65.0574689]
[1769654653625,64.40247005,123.67,123.6,65.0574689]
[1769654653626,66.91566828,123.67,123.6,65.0574689]
[1769654654128,66.91566828,123.67,123.6,67.57066713]
[1769654654626,66.91566828,123.67,123.6,74.86216713]
[1769654655329,64.40247005,123.67,123.61,74.86186713]
[1769654655626,64.40247005,123.67,123.62,2.51319823]
[1769654656020,64.40247005,123.69,123.63,2.51319823]
[1769654656921,64.40247005,123.69,123.62,74.86136713]
[1769654657122,64.40247005,123.69,123.63,2.51319823]
[1769654657324,66.91566828,123.69,123.63,2.51319823]
[1769654657724,64.40247005,123.69,123.63,2.51319823]
[1769654657928,66.91566828,123.69,123.63,2.51319823]
[1769654659932,66.91566828,123.69,123.62,72.3481689]
[1769654660128,64.40247005,123.69,123.63,2.51319823]
[1769654660323,66.91566828,123.69,123.62,67.57066713]
[1769654660529,7.2857,123.71,123.65,2.51319823]
[1769654660530,2.51319823,123.71,123.65,2.51319823]
[1769654660729,6.24431994,123.71,123.65,2.51319823]
[1769654661028,66.91566828,123.72,123.65,2.51319823]
[1769654661334,70.64729527,123.71,123.65,9.80199823]
[1769654661524,64.40247005,123.71,123.65,9.80199823]
[1769654661728,64.40247005,123.71,123.65,74.85946713]
[1769654663736,64.40247005,123.71,123.67,2.51319823]
[1769654664035,64.40247005,123.73,123.67,2.51319823]
[1769654664337,64.40247005,123.73,123.68,2.51319823]
[1769654664532,64.40247005,123.75,123.69,2.51319823]
[1769654664735,6.25244349,123.74,123.7,2.51319823]
[1769654664933,65.15657384,123.77,123.69,70.68048005]
[1769654665238,6.25376111,123.76,123.72,9.79819823]
[1769654665533,6.25376111,123.76,123.72,7.285]
[1769654665730,65.15657384,123.77,123.72,7.285]
[1769654668235,7.2814,123.79,123.7,70.68048005]
[1769654668236,65.15657384,123.79,123.71,190.73184157]
[1769654668430,65.15657384,123.79,123.72,70.68048005]
[1769654668827,65.15657384,123.79,123.71,120.05136152]
[1769654669033,6.1937287,123.78,123.71,183.92674921]
[1769654669223,65.15657384,123.79,123.71,183.92674921]
[1769654670438,65.15657384,123.79,123.73,7.2843]
[1769654671037,72.43757384,123.79,123.71,7.2851]
[1769654671241,68.75007203,123.77,123.71,7.2851]
[1769654679242,68.75007203,123.77,123.69,77.88744921]
[1769654679452,68.75007203,123.77,123.69,7.2862]
[1769654679946,76.03217203,123.77,123.7,7.2862]
[1769654682946,68.75007203,123.75,123.65,70.60124921]
[1769654683148,12.90277912,123.76,123.65,70.60124921]
[1769654683149,68.75007203,123.73,123.65,70.60124921]
[1769654684346,68.75007203,123.73,123.66,7.288]
[1769654685652,71.26370132,123.72,123.67,7.2879]
[1769654686348,68.75007203,123.72,123.67,7.2879]
[1769654687041,68.75007203,123.72,123.68,7.2872]
[1769654688143,2.51362929,123.74,123.68,9.80082929]
[1769654688144,68.75007203,123.74,123.68,9.80082929]
[1769654689342,68.75007203,123.74,123.68,7.2872]
[1769654689547,68.75007203,123.74,123.68,9.80082929]
[1769654690644,68.75007203,123.74,123.62,113.407]
[1769654690848,68.75007203,123.74,123.62,70.60124921]
[1769654690849,71.26370132,123.68,123.62,70.60124921]
[1769654691150,71.26370132,123.68,123.62,73.1148785]
[1769654691650,68.75007203,123.68,123.62,70.60124921]
[1769654692344,68.75007203,123.68,123.62,77.89214921]
[1769654692946,68.75007203,123.73,123.64,70.60124921]
[1769654693150,68.75007203,123.71,123.64,70.60124921]
[1769654694249,68.75007203,123.71,123.64,77.89084921]
[1769654694447,68.75007203,123.71,123.64,70.60124921]
[1769654695448,68.75007203,123.71,123.65,7.2891]
[1769654697150,68.75007203,123.71,123.66,7.2885]
[1769654701053,68.75007203,123.71,123.65,7.2891]
[1769654701254,68.75007203,123.71,123.63,64.44782543]
[1769654701454,66.6640125,123.69,123.59,64.44782543]
[1769654702047,66.6640125,123.67,123.59,64.44782543]
[1769654702457,66.6640125,123.67,123.61,7.2914]
[1769654702852,66.6640125,123.67,123.59,64.44782543]
[1769654703054,73.9520125,123.67,123.6,7.2921]
[1769654703456,66.6640125,123.67,123.57,420.4322]
[1769654703646,66.6640125,123.65,123.59,7.2926]
[1769654704356,73.9533125,123.65,123.57,314.2737]
[1769654704550,73.9533125,123.65,123.57,306.98]
[1769654705054,66.6640125,123.65,123.58,64.44782543]
[1769654705455,66.6640125,123.67,123.6,71.73972543]
[1769654705756,66.6640125,123.67,123.6,64.44782543]
[1769654706055,66.6640125,123.65,123.57,7.2936]
[1769654706250,66.6640125,123.65,123.54,396.36200063]
[1769654706447,6.73354884,123.64,123.54,396.36200063]
[1769654706653,66.6640125,123.63,123.56,7.2944]
[1769654707153,73.9543125,123.63,123.54,80.73710063]
[1769654707359,73.9543125,123.63,123.54,73.44200063]
[1769654707658,66.6640125,123.63,123.54,73.44200063]
[1769654707861,66.6640125,123.63,123.56,64.44782543]
[1769654709256,66.6640125,123.67,123.57,64.44782543]
[1769654710459,66.6640125,123.65,123.58,7.2931]
[1769654710657,66.6640125,123.67,123.58,64.44782543]
[1769654710968,66.6640125,123.69,123.62,71.73852543]
[1769654713165,66.6640125,123.69,123.63,7.2902]
[1769654713560,66.6640125,123.69,123.62,64.44782543]
[1769654713955,66.6640125,123.69,123.64,7.2896]
[1769654714260,66.6640125,123.67,123.58,113.4449]
[1769654714467,66.6640125,123.67,123.59,64.44782543]
[1769654715362,73.9520125,123.67,123.61,7.2914]
[1769654715557,66.6640125,123.67,123.61,7.2914]
[1769654716863,66.6640125,123.67,123.6,64.44782543]
[1769654717764,66.6640125,123.67,123.61,7.2915]
[1769654720362,73.9521125,123.67,123.6,7.292]
[1769654720559,66.6640125,123.67,123.58,64.44782543]
[1769654720959,66.6640125,123.65,123.58,71.74062543]
[1769654721258,66.6640125,123.65,123.58,64.44782543]
[1769654722360,66.6640125,123.65,123.59,7.2925]
[1769654723770,73.9532125,123.65,123.58,7.2932]
[1769654725469,73.9532125,123.65,123.59,7.2925]
[1769654725470,66.6640125,123.65,123.59,7.2925]
[1769654725971,66.6640125,123.65,123.56,392.77040686]
[1769654726360,66.6640125,123.65,123.57,69.77040686]
[1769654726565,66.6640125,123.65,123.59,7.2925]
[1769654727067,73.9531125,123.65,123.58,7.2932]
[1769654729068,66.6640125,123.65,123.57,7.2938]
[1769654729270,70.7510094,123.63,123.57,7.2938]
[1769654730063,78.0414094,123.63,123.56,330.2944]
[1769654732168,78.0414094,123.63,123.56,400.59199285]
[1769654733378,70.7510094,123.66,123.57,70.29759285]
[1769654734373,70.7510094,123.66,123.59,7.2921]
[1769654735369,70.7510094,123.7,123.6,77.03114169]
[1769654735574,70.7510094,123.7,123.63,77.03114169]
[1769654735772,70.7510094,123.74,123.64,70.29759285]
[1769654735974,7.47125535,123.75,123.64,70.29759285]
[1769654735975,76.95950599,123.73,123.66,70.29759285]
[1769654736177,70.7510094,123.73,123.66,70.29759285]
[1769654736376,70.7510094,123.76,123.68,70.29759285]
[1769654736581,70.7510094,123.76,123.69,70.29759285]
[1769654736880,76.95805915,123.75,123.69,70.29759285]
[1769654737074,76.95805915,123.75,123.66,183.67099285]
[1769654737075,70.7510094,123.75,123.66,183.67099285]
[1769654737275,78.0343094,123.75,123.66,77.58559285]
[1769654738585,70.7510094,123.75,123.67,70.29759285]
[1769654739286,70.7510094,123.75,123.68,7.2872]
[1769654740578,70.7510094,123.75,123.69,7.2867]
[1769654741077,70.7510094,123.75,123.67,7.2874]
[1769654742388,78.0343094,123.75,123.67,7.2874]
[1769654742592,70.7510094,123.75,123.68,77.58489285]
[1769654747788,78.0343094,123.75,123.66,70.29759285]
[1769654747986,70.7510094,123.73,123.64,70.29759285]
[1769654748493,77.48455824,123.73,123.62,393.19759285]
[1769654748684,77.48455824,123.73,123.62,70.29759285]
[1769654748685,70.7510094,123.71,123.62,70.29759285]
[1769654749390,78.0367094,123.71,123.63,7.2902]
[1769654750684,70.7510094,123.69,123.61,7.291]
[1769654752083,70.7510094,123.69,123.62,7.2907]
[1769654752994,70.7510094,123.69,123.61,70.29759285]
[1769654753690,73.26662083,123.68,123.61,72.81320428]
[1769654754090,70.7510094,123.68,123.62,2.51561143]
[1769654755395,70.7510094,123.68,123.61,80.10470428]
[1769654756092,70.7510094,123.68,123.62,7.2909]
[1769654756298,73.26662083,123.68,123.62,7.2909]
[1769654756496,70.7510094,123.68,123.62,2.51561143]
[1769654756699,70.7510094,123.68,123.62,71.93465033]
[1769654756893,71.7513369,123.7,123.63,79.22495033]
[1769654757096,71.7513369,123.7,123.63,71.93465033]
[1769654757591,71.75046021,123.7,123.63,71.93377364]
[1769654758391,71.75046021,123.7,123.64,7.2897]
[1769654761193,71.75046021,123.69,123.64,7.2897]
[1769654761389,71.75046021,123.67,123.6,115.94383474]
[1769654761595,71.75046021,123.67,123.6,113.4291]
[1769654761892,2.51473474,123.66,123.57,505.8193389]
[1769654762091,69.23572547,123.63,123.56,69.4190389]
[1769654762294,71.75046021,123.63,123.56,71.93377364]
[1769654762595,71.75046021,123.63,123.56,79.22777364]
[1769654762906,69.23572547,123.63,123.57,71.93377364]
[1769654763089,2.51473474,123.65,123.58,2.51473474]
[1769654763399,71.75046021,123.65,123.58,71.93377364]
[1769654763596,69.23572547,123.65,123.58,69.4190389]
[1769654764399,69.23572547,123.65,123.58,76.7117389]
[1769654765301,69.23572547,123.68,123.6,69.4190389]
[1769654766595,76.52322547,123.68,123.6,69.4190389]
[1769654766802,69.23572547,123.67,123.56,69.4190389]
[1769654767093,82.16111575,123.66,123.56,69.4190389]
[1769654767296,75.97685383,123.66,123.56,69.4190389]
[1769654767895,69.23572547,123.65,123.57,69.4190389]
[1769654768096,69.23572547,123.69,123.57,69.4190389]
[1769654768296,69.23572547,123.67,123.57,69.4190389]
[1769654768899,76.52382547,123.67,123.58,76.7121389]
[1769654769901,69.23572547,123.65,123.56,7.294]
[1769654770104,69.23572547,123.65,123.56,76.7130389]
[1769654770299,69.23572547,123.65,123.41,340.8059]
[1769654770300,6.74112836,123.59,123.48,113.5427]
[1769654770495,120.18342836,123.59,123.48,7.2989]
[1769654770693,6.74112836,123.59,123.49,71.24638532]
[1769654771100,14.03272836,123.61,123.5,71.24638532]
[1769654771298,113.4123,123.63,123.51,71.24638532]
[1769654771503,370.576,123.65,123.52,77.98751368]
[1769654771699,7.2904,123.63,123.53,71.24638532]
[1769654772197,370.576,123.65,123.47,78.54588532]
[1769654772198,113.4441,123.59,123.47,78.54588532]
[1769654772411,6.16045906,123.58,123.47,71.24638532]
[1769654772702,7.2923,123.6,123.49,71.24638532]
[1769654773099,120.727,123.6,123.49,71.24638532]
[1769654773296,7.2935,123.58,123.49,71.24638532]
[1769654773605,113.474,123.56,123.46,71.24638532]
[1769654773799,7.2966,123.53,123.45,323.04]
[1769654774198,113.5067,123.52,123.41,71.24638532]
[1769654774407,113.5067,123.52,123.42,71.24638532]
[1769654774408,14.03832836,123.52,123.42,71.24638532]
[1769654774603,113.517,123.51,123.42,71.24638532]
[1769654774905,120.20982836,123.57,123.44,77.98751368]
[1769654775203,113.4702,123.56,123.45,71.24638532]
[1769654775403,120.22032836,123.55,123.45,71.24638532]
[1769654775799,7.296,123.54,123.45,71.24638532]
[1769654776000,120.7841,123.54,123.45,71.24638532]
[1769654776195,382.5127,123.6,123.48,71.24638532]
[1769654776403,113.4453,123.59,123.48,71.24638532]
[1769654776804,375.2204,123.6,123.49,6.74112836]
[1769654777003,375.2204,123.6,123.49,77.98751368]
[1769654777203,113.4429,123.59,123.49,77.98751368]
[1769654777400,7.2931,123.59,123.49,77.98751368]
[1769654777600,120.7368,123.59,123.49,71.24638532]
[1769654778108,7.2931,123.59,123.49,71.24638532]
[1769654778302,113.4,123.64,123.52,77.98751368]
[1769654778507,120.13612836,123.65,123.52,77.98751368]
[1769654778704,7.2892,123.65,123.54,77.98751368]
[1769654779003,113.388,123.65,123.54,77.98751368]
[1769654779206,113.4058,123.63,123.54,71.24638532]
[1769654779407,7.2907,123.63,123.54,71.24638532]
[1769654779608,120.6963,123.63,123.54,71.24638532]
[1769654779911,7.2907,123.63,123.54,71.24638532]
[1769654780215,120.696,123.63,123.53,6.74112836]
[1769654780401,120.696,123.63,123.51,78.54358532]
[1769654780402,113.4167,123.62,123.51,77.98751368]
[1769654780712,113.4242,123.61,123.51,71.24638532]
[1769654780912,7.292,123.61,123.51,71.24638532]
[1769654781113,7.292,123.61,123.51,77.98751368]
[1769654781415,113.3967,123.64,123.54,71.24638532]
[1769654781715,262.28,123.66,123.55,77.98751368]
[1769654782016,113.3674,123.68,123.57,77.98751368]
[1769654782217,7.2868,123.69,123.59,77.98751368]
[1769654782512,113.3542,123.69,123.59,77.98751368]
[1769654782710,7.2864,123.7,123.61,77.98751368]
[1769654783105,226.6956,123.7,123.58,71.24638532]
[1769654783309,113.3603,123.68,123.58,78.53928532]
[1769654783504,113.3478,123.7,123.59,6.74112836]
[1769654783712,120.06402836,123.72,123.6,71.24638532]
[1769654783910,7.2864,123.7,123.61,77.98751368]
[1769654785015,7.2852,123.72,123.61,85.27871368]
[1769654785313,120.06452836,123.72,123.61,85.27871368]
[1769654786314,7.2859,123.71,123.61,78.53758532]
[1769654786718,113.3331,123.71,123.61,71.24638532]
[1769654786909,113.3613,123.68,123.58,71.17690603]
[1769654787309,6.74112836,123.7,123.6,78.46870603]
[1769654787514,113.3234,123.72,123.6,78.46870603]
[1769654787515,120.06452836,123.72,123.6,78.46870603]
[1769654787711,7.2859,123.71,123.61,71.17690603]
[1769654788318,7.2864,123.7,123.61,78.46790603]
[1769654788817,7.2864,123.7,123.61,71.17690603]
[1769654789114,7.2889,123.66,123.55,71.15976987]
[1769654789317,113.3779,123.66,123.55,85.19559823]
[1769654789520,113.3908,123.65,123.55,71.15976987]
[1769654789721,7.2911,123.62,123.55,71.15976987]
[1769654790220,7.2918,123.61,123.51,71.15976987]
[1769654791515,7.2918,123.61,123.51,78.45686987]
[1769654791914,7.2922,123.6,123.51,71.15976987]
[1769654792115,113.4258,123.61,123.51,71.15976987]
[1769654792316,113.4355,123.6,123.51,71.15976987]
[1769654792512,113.4426,123.59,123.51,71.15976987]
[1769654792718,113.4609,123.57,123.48,71.15976987]
[1769654792918,113.4742,123.56,123.48,71.15976987]
[1769654793119,113.4976,123.53,123.44,71.15976987]
[1769654793419,120.21532836,123.56,123.44,71.15976987]
[1769654793626,7.2964,123.53,123.44,71.15976987]
[1769654794218,7.2952,123.55,123.46,71.15976987]
[1769654794425,113.472,123.56,123.46,71.15976987]
[1769654794619,120.20202836,123.57,123.46,71.15976987]
[1769654794915,120.20202836,123.57,123.44,6.74112836]
[1769654794916,7.2945,123.56,123.49,71.15976987]
[1769654795322,7.2952,123.55,123.49,71.15976987]
[1769654795617,113.4788,123.55,123.49,71.15976987]
[1769654796027,113.472,123.56,123.49,71.15976987]
[1769654796222,113.4501,123.59,123.49,71.15976987]
[1769654796530,6.74112836,123.6,123.49,71.15976987]
[1769654796920,7.2931,123.59,123.49,71.15976987]
[1769654797320,113.4536,123.58,123.49,71.15976987]
[1769654797826,120.17622836,123.6,123.49,71.15976987]
[1769654798323,7.2934,123.58,123.49,71.15976987]
[1769654798522,113.4559,123.58,123.49,71.15976987]
[1769654798723,113.4604,123.57,123.49,71.15976987]
[1769654798923,7.2947,123.56,123.49,71.15976987]
[1769654799224,120.17302836,123.61,123.51,71.15976987]
[1769654800027,113.4339,123.6,123.51,71.15976987]
[1769654800417,7.2935,123.58,123.51,71.15976987]
[1769654800622,113.4611,123.57,123.48,71.15976987]
[1769654800824,120.20222836,123.57,123.48,71.15976987]
[1769654801122,7.2958,123.54,123.45,78.46036987]
[1769654801318,113.491,123.54,123.45,71.15976987]
[1769654801521,113.491,123.54,123.42,120.33292836]
[1769654801522,120.23922836,123.53,123.42,71.15976987]
[1769654801928,113.5095,123.52,123.42,78.46226987]
[1769654802830,7.2983,123.5,123.42,71.15976987]
[1769654803029,120.23922836,123.53,123.42,71.15976987]
[1769654803225,7.2975,123.51,123.42,78.46236987]
[1769654803923,7.2984,123.5,123.42,71.15976987]
[1769654804425,120.25762836,123.51,123.42,71.15976987]
[1769654804826,7.2984,123.5,123.42,71.15976987]
[1769654805129,113.5106,123.52,123.42,71.15976987]
[1769654806129,120.23922836,123.53,123.42,71.15976987]
[1769654806527,113.5067,123.52,123.42,71.15976987]